Cogmind - Beta 14 @@@ ROGUE MODE // 2024.10.08 @ 15:36:14 Player: Tereza Result: Destroyed by G-47 Trooper with Particle Gun Performance ------------- Evolutions (3) 1500 Regions Visited (6) 1200 Robots Destroyed (59) 295 Value Destroyed (1764) 1764 Prototype IDs (0) 0 Alien Tech Used (0) 0 Bonus (0) 0 TOTAL SCORE: 4759 Bonus ------- None Cogmind --------- Core Integrity 0/700 Matter 10/300 Energy 66/100 System Corruption 7% Temperature Cool (10) Movement Treading (160) Location -7/Factory Parts ------- > --- POWER (1) -------- (None) > --- PROPULSION (3) --- Medium Treads > --- UTILITY (7) ------ Small Storage Unit Core Analyzer Hacking Suite > --- WEAPON (2) ------- (None) > --- INVENTORY (8) ---- Improved Deuterium Engine Armored Wheel Disposable Heat Sink Improved Targeting Computer System Shield Particle Gun Mini Grenade Launcher Peak State ------------ > --- POWER ------------ Reinforced Deuterium Engine > --- PROPULSION ------- Medium Treads Medium Treads Medium Treads > --- UTILITY ---------- Medium Storage Unit Core Analyzer Improved Light Armor Plating Hacking Suite System Shield System Shield Corruption Screen > --- WEAPON ----------- Flak Gun Flak Gun > --- INVENTORY -------- Light Treads Medium Treads Hacking Suite System Shield Corruption Screen Corruption Screen Arc Projector Flak Gun Flak Gun Improved Light Cannon [Rating: 48] Favorites ----------- Power Ion Engine Engine Ion Engine Propulsion Medium Treads Treads Medium Treads Utility System Shield Device Sensor Array Storage Medium Storage Unit Processor Signal Interpreter Hackware System Shield Protection Improved Light Armor Plating Weapon Flak Gun Ballistic Gun Flak Gun Ballistic Cannon Improved Light Cannon Build | -11 -10 -9 -8 -7 -7 -7 ------- Run | Yrd Mat Mat Mat Fac Was Fac Slots Evolved 6 | . . 2 2 2 . . Power . | . . . . . . . Propulsion 1 | . . . . 1 . . Utility 5 | . . 2 2 1 . . Weapon . | . . . . . . . Parts Attached 59 | 6 4 8 22 13 . 6 Power 5 | 1 . 2 . 1 . 1 Engine 5 | 1 . 2 . 1 . 1 Core . | . . . . . . . Reactor . | . . . . . . . Propulsion 13 | 2 . 2 5 2 . 2 Treads 13 | 2 . 2 5 2 . 2 Leg . | . . . . . . . Wheel . | . . . . . . . Hover . | . . . . . . . Flight . | . . . . . . . Utility 27 | 1 2 4 13 4 . 3 Device 5 | . . 2 1 . . 2 Storage 6 | 1 1 . 3 . . 1 Processor 5 | . 1 . 2 2 . . Hackware 4 | . . . 3 1 . . Protection 7 | . . 2 4 1 . . Artifact . | . . . . . . . Weapon 14 | 2 2 . 4 6 . . Energy Gun . | . . . . . . . Energy Cannon . | . . . . . . . Ballistic Gun 7 | 2 . . 2 3 . . Ballistic Cannon 7 | . 2 . 2 3 . . Launcher . | . . . . . . . Special Weapon . | . . . . . . . Impact Weapon . | . . . . . . . Slashing Weapon . | . . . . . . . Piercing Weapon . | . . . . . . . Special Melee Weapon . | . . . . . . . Unidentified Prototypes . | . . . . . . . Parts Lost 34 | . . 1 16 12 1 4 Power 3 | . . . 1 1 . 1 Propulsion 8 | . . . 4 3 . 1 Utility 15 | . . 1 7 4 1 2 Weapon 8 | . . . 4 4 . . Highest Loss Streak 13 | . . 1 13 7 1 4 To Critical Strikes . | . . . . . . . Average Slot Usage (%) 89 | . 97 98 81 93 30 50 Engine 8 | . 14 11 6 5 . 6 Treads 20 | . 28 22 13 21 . 6 Device 3 | . . 11 6 . . 13 Storage 9 | . 14 11 7 6 . 6 Processor 12 | . 11 11 8 15 15 7 Hackware 11 | . . . 17 21 14 7 Protection 4 | . . 10 6 5 . . Ballistic Gun 10 | . 26 . . 11 . . Ballistic Cannon 7 | . 1 22 12 3 . . Peak Build Rating 48 | 6 10 13 34 48 19 25 Average Rating 24 | 4 7 11 18 45 14 22 On Entrance 12 | . 6 10 13 34 19 8 Naked Turns . | . . . . . . . Heaviest Build 43 | 13 23 27 43 41 . 19 Greatest Support 84 | 40 40 40 56 84 3 56 Greatest Overweight (x) 10 | 4 . . 5 10 . 1 Average Overweight (x) . | 1 . . . . . . Largest Inventory Capacity 15 | 8 10 10 15 10 5 8 Average Capacity 9 | 7 8 10 12 9 5 7 Most Carried 14 | 6 10 10 14 10 5 8 Average Carried 8 | 4 7 9 10 9 5 5 Final Capacity 10 | 8 10 10 10 5 5 8 Final Carried 10 | 6 10 10 10 5 5 7 Class Distribution -------------------- 46% | Hacker-Mutant 33% | Mutant 19% | Scavenger-Mutant Dominant Class ---------------- Mutant | -10/Materials Scavenger-Mutant | -9/Materials Hacker-Mutant | -8/Materials Hacker-Mutant | -7/Factory Hacker-Mutant | -7/Waste Mutant | -7/Factory Resources | -11 -10 -9 -8 -7 -7 -7 ----------- Run | Yrd Mat Mat Mat Fac Was Fac Matter Collected 1678 | 260 186 469 159 604 . . Remotely . | . . . . . . . Salvage Created 1832 | . 395 641 153 643 . . Parts 110 | . 23 36 17 34 . . Haulers Intercepted 4 | . 2 2 . . . . Recyclers Shooed 1 | . 1 . . . . . Parts Field Recycled . | . . . . . . . Retrieved Matter . | . . . . . . . Parts Self-Destructed . | . . . . . . . Prevented . | . . . . . . . Kills | -11 -10 -9 -8 -7 -7 -7 ------- Run | Yrd Mat Mat Mat Fac Was Fac Combat Hostiles Destroyed 39 | . 5 14 6 14 . . Guns 17 | . 5 . . 12 . . Cannons 22 | . . 14 6 2 . . Classes Destroyed 11 | . 4 5 1 1 . . Worker 1 | . . 1 . . . . Tunneler 1 | . . 1 . . . . Hauler 4 | . 2 2 . . . . Recycler 3 | . . 1 1 1 . . Operator 4 | . 1 3 . . . . Watcher 7 | . 2 1 1 3 . . Swarmer 7 | . . . 5 2 . . Grunt 20 | . 5 10 . 5 . . Brawler 2 | . . 1 . 1 . . Sentry 8 | . . 3 1 4 . . Programmer 2 | . . . . 2 . . Best Kill Streak 6 | . 3 5 6 3 . . Combat Bots Only 4 | . 3 3 4 3 . . Max Kills in Single Turn 2 | . 1 2 1 1 . . Gunslinging . | . . . . . . . Exploded . | . . . . . . . Melee . | . . . . . . . Uniques/NPCs Destroyed . | . . . . . . . Combat | -11 -10 -9 -8 -7 -7 -7 -------- Run | Yrd Mat Mat Mat Fac Was Fac Hostile Shots Fired 658 | . 34 51 256 271 1 45 Missed 174 | . 7 12 69 76 . 10 Damage Taken 6156 | . 438 515 1997 2620 52 534 Core 1236 | . 74 42 412 525 52 131 Absorbed by Shields . | . . . . . . . Core Remaining (%) 71 | 100 70 89 25 . . . Volleys Fired 179 | . 52 41 27 59 . . Largest 2 | . 2 2 2 2 . . Hottest 96 | . 40 78 83 96 . . Shots Fired 346 | . 104 84 51 107 . . Gun 171 | . 104 . . 67 . . Cannon 175 | . . 84 51 40 . . Launcher . | . . . . . . . Special . | . . . . . . . Kinetic 346 | . 104 84 51 107 . . Thermal . | . . . . . . . Explosive . | . . . . . . . Electromagnetic . | . . . . . . . Robot Hit Streak 13 | . 10 13 4 11 . . Robot Miss Streak 11 | . 6 3 8 11 . . Penetration Max . | . . . . . . . Secondary Targets 1 | . . . . 1 . . Max Gunslinging Chain 1 | . . . . 1 . . Shots Hit Robots 204 | . 63 56 11 74 . . Core Hits 141 | . 20 25 12 84 . . Critical Kills 2 | . 1 . . 1 . . Critical Parts Destroyed 1 | . 1 . . . . . Critical Strikes 6 | . 2 2 . 2 . . Destroy 3 | . 2 . . 1 . . Blast 3 | . . 2 . 1 . . Melee Attacks . | . . . . . . . Impact . | . . . . . . . Slashing . | . . . . . . . Piercing . | . . . . . . . Sneak Attacks . | . . . . . . . Combat Hostiles . | . . . . . . . Follow-up Attacks . | . . . . . . . Damage Inflicted 3922 | . 650 1266 331 1675 . . Guns 1705 | . 650 . . 1055 . . Cannons 2163 | . . 1266 329 568 . . Explosions 45 | . . . . 45 . . Melee . | . . . . . . . Ramming 9 | . . . 2 7 . . Kinetic 3868 | . 650 1266 329 1623 . . Thermal . | . . . . . . . Explosive 45 | . . . . 45 . . Electromagnetic . | . . . . . . . Impact . | . . . . . . . Slashing . | . . . . . . . Piercing . | . . . . . . . Highest Corruption 7 | . . 1 . . 7 7 Average Corruption 3 | . . 1 . . 7 7 Corruption Purged . | . . . . . . . Corruption Blocked 8 | . . . . 5 3 . Effects 11 | . . 5 . . 1 5 Message Errors 1 | . . . . . . 1 Matter Fused 1 | . . . . . . 1 Heat Flow Errors 3 | . . . . . 1 2 Energy Discharges 2 | . . 2 . . . . Data Loss (minor) 2 | . . 1 . . . 1 Misfires 2 | . . 2 . . . . Overload Shots . | . . . . . . . Overflow Damage 36 | . . 9 3 24 . . Projectiles 36 | . . 9 3 24 . . Explosions . | . . . . . . . Melee . | . . . . . . . Knockbacks 21 | . . 6 8 7 . . Impact . | . . . . . . . Kinetic 20 | . . 6 7 7 . . Secondary 1 | . . . 1 . . . Self-Inflicted Damage . | . . . . . . . Shots . | . . . . . . . Rammed 4 | . . . 1 3 . . Targets Rammed 4 | . . . 1 3 . . Kicked . | . . . . . . . Crushed . | . . . . . . . Highest Temperature 244 | . 36 133 144 150 222 244 Average Temperature 42 | . 13 33 52 40 120 100 Received Heat Transfer 2343 | . 228 210 612 942 . 351 Siege Activations . | . . . . . . . Robots Corrupted . | . . . . . . . Combat Hostiles . | . . . . . . . Parts Fried . | . . . . . . . Impact Corruptions . | . . . . . . . Robots Melted . | . . . . . . . Combat Hostiles . | . . . . . . . Parts Melted . | . . . . . . . Heat Transferred . | . . . . . . . Parts Sabotaged . | . . . . . . . Parts Stolen . | . . . . . . . Parts Stripped . | . . . . . . . Power Chain Reactions . | . . . . . . . Alert | -11 -10 -9 -8 -7 -7 -7 ------- Run | Yrd Mat Mat Mat Fac Was Fac Peak Influence 363 | . 130 336 363 282 18 25 Initial 122 | . . 11 122 51 3 5 Average 108 | . 56 196 178 104 4 6 Maximum Alert Level 1 | . . 1 1 1 . . Low Security (%) 81 | 100 100 50 68 83 100 100 Level 1 18 | . . 49 31 16 . . Level 2 . | . . . . . . . Level 3 . | . . . . . . . Level 4 . | . . . . . . . Level 5 . | . . . . . . . High Security . | . . . . . . . Max Security . | . . . . . . . Squads Dispatched 13 | . 1 4 3 3 . 2 Investigation 3 | . . 1 1 . . 1 Extermination 2 | . . . . 2 . . Reinforcement 7 | . 1 3 2 . . 1 Assault . | . . . . . . . Garrison 1 | . . . . 1 . . Intercept . | . . . . . . . Searches Triggered . | . . . . . . . Construction Impeded 1 | . . . 1 . . . Haulers Reinforced . | . . . . . . . Active Scanning Responses . | . . . . . . . Cargo Convoy Interrupts . | . . . . . . . Stealth | -11 -10 -9 -8 -7 -7 -7 --------- Run | Yrd Mat Mat Mat Fac Was Fac Distress Signals 4 | . 2 2 . . . . Communications Jammed . | . . . . . . . Distress Signals . | . . . . . . . Times Spotted 96 | . 16 21 21 23 6 9 Peak Tracking Total 7 | . 3 3 6 4 6 7 Tactical Retreats 6 | . . . 3 2 . 1 Traps | -11 -10 -9 -8 -7 -7 -7 ------- Run | Yrd Mat Mat Mat Fac Was Fac Traps Triggered 7 | . 2 2 . 1 . 2 Indirectly . | . . . . . . . Trap Hack Attempts . | . . . . . . . Triggered . | . . . . . . . Disarmed . | . . . . . . . Reprogrammed 5 | . 5 . . . . . Reused . | . . . . . . . Traps Extracted . | . . . . . . . Installed . | . . . . . . . Triggered . | . . . . . . . Objects Rigged 1 | . . . 1 . . . Machines | -11 -10 -9 -8 -7 -7 -7 ---------- Run | Yrd Mat Mat Mat Fac Was Fac Machines Disabled 4 | . . 2 1 1 . . Max in Single Turn 1 | . . 1 1 1 . . Machines Repaired . | . . . . . . . Machines Dismantled . | . . . . . . . Machines Sabotaged . | . . . . . . . Overloaded Fab Kills . | . . . . . . . Hacking | -11 -10 -9 -8 -7 -7 -7 --------- Run | Yrd Mat Mat Mat Fac Was Fac Machines Accessed 15 | . 5 2 5 2 . 1 Terminals 15 | . 5 2 5 2 . 1 Fabricators . | . . . . . . . Repair Stations . | . . . . . . . Recycling Units . | . . . . . . . Scanalyzers . | . . . . . . . Garrison Access . | . . . . . . . Total Hacks 38 | . 10 4 13 10 . 1 Successful 11 | . 2 1 4 4 . . Failed 27 | . 8 3 9 6 . 1 Catastrophic 5 | . 2 . 2 1 . . Database Lockouts . | . . . . . . . Manual 26 | . 7 2 9 7 . 1 Terminals 38 | . 10 4 13 10 . 1 Fabricators . | . . . . . . . Repair Stations . | . . . . . . . Recycling Units . | . . . . . . . Scanalyzers . | . . . . . . . Garrison Access . | . . . . . . . Terminal Hacks 7 | . 2 . 1 4 . . Branch Access Points 1 | . . . . 1 . . Alert Level 4 | . 1 . 1 2 . . Unreport Threat 1 | . . . . 1 . . Reprogram Traps 1 | . 1 . . . . . Fabricator Hacks . | . . . . . . . Repair Station Hacks . | . . . . . . . Recycling Unit Hacks . | . . . . . . . Scanalyzer . | . . . . . . . Garrison Access Hacks . | . . . . . . . Unauthorized Hacks 4 | . . 1 3 . . . Terminals 4 | . . 1 3 . . . Track 1 | . . . 1 . . . Assimilate 2 | . . 1 1 . . . Detonate 1 | . . . 1 . . . Fabricators . | . . . . . . . Repair Stations . | . . . . . . . Recycling Units . | . . . . . . . Scanalyzers . | . . . . . . . Garrison Access . | . . . . . . . Data Cores Recovered . | . . . . . . . Used . | . . . . . . . Hacking Detections 13 | . 4 2 4 2 . 1 Full Trace Events 2 | . 1 . 1 . . . Feedback Events . | . . . . . . . Feedback Blocked . | . . . . . . . Robot Schematics Acquired . | . . . . . . . Robots Built . | . . . . . . . Authchips . | . . . . . . . Time . | . . . . . . . Total Robot Build Rating . | . . . . . . . Part Schematics Acquired . | . . . . . . . Parts Built . | . . . . . . . Authchips . | . . . . . . . Time . | . . . . . . . Total Part Build Rating . | . . . . . . . Parts Repaired . | . . . . . . . Time . | . . . . . . . Parts Recycled . | . . . . . . . Recycled Matter . | . . . . . . . Retrieved Matter . | . . . . . . . Retrieved Components . | . . . . . . . Parts Scanalyzed . | . . . . . . . Part Schematics Acquired . | . . . . . . . Parts Damaged . | . . . . . . . Bothacking | -11 -10 -9 -8 -7 -7 -7 ------------ Run | Yrd Mat Mat Mat Fac Was Fac Used RIF Installer . | . . . . . . . Robots Hacked . | . . . . . . . Non-combat . | . . . . . . . Combat . | . . . . . . . Robot Hacks Applied . | . . . . . . . Relay Couplers Released . | . . . . . . . Fabnet Peak Effective % . | . . . . . . . Robots Rewired . | . . . . . . . Allies Hacked . | . . . . . . . Hacks Repelled . | . . . . . . . Allies | -11 -10 -9 -8 -7 -7 -7 -------- Run | Yrd Mat Mat Mat Fac Was Fac Total Allies 1 | . . . 1 . . . Largest Group 1 | . . . 1 . . . Highest-Rated Group 10 | . . . 10 . . . Highest-Rated Ally 10 | . . . 10 . . . Total Orders . | . . . . . . . Ally Attacks . | . . . . . . . Total Damage . | . . . . . . . Kills . | . . . . . . . Allies Corrupted . | . . . . . . . Allies Melted . | . . . . . . . Intel | -11 -10 -9 -8 -7 -7 -7 ------- Run | Yrd Mat Mat Mat Fac Was Fac Robot Analysis Total . | . . . . . . . Derelict Logs Recovered . | . . . . . . . Drone Launches . | . . . . . . . Drone Recoveries . | . . . . . . . Exploration | -11 -10 -9 -8 -7 -7 -7 ------------- Run | Yrd Mat Mat Mat Fac Was Fac Turns Passed 4115 | 76 978 660 622 1432 88 259 Spaces Moved 2203 | 39 497 291 323 743 146 164 Core 374 | 22 . . 128 57 146 21 Treads 1829 | 17 497 291 195 686 . 143 Legs . | . . . . . . . Wheels . | . . . . . . . Hover . | . . . . . . . Flight . | . . . . . . . Fastest Speed 50 | 50 160 160 50 50 50 50 Average Speed 148 | 158 160 160 151 154 50 150 Slowest Speed 550 | 250 160 160 320 550 50 160 Overloaded Moves . | . . . . . . . Propulsion Burnouts . | . . . . . . . Robots Hopped . | . . . . . . . Cave-ins Triggered . | . . . . . . . Exploration Rate (%) 35 | 4 75 31 31 18 79 7 Regions Visited 6 Branch Regions . Pre-discovered Areas . | . . . . . . . Known Exits Taken 2 | . 1 1 . . . . Unknown Exits Taken 2 | 1 . . 1 . . . Scrap Searched . | . . . . . . . Spaces Dug 5 | . . . . 5 . . Terrain Destroyed 40 | . . 4 4 32 . . Melee . | . . . . . . . Projectile 18 | . . 4 4 10 . . AOE 22 | . . . . 22 . . Terrain Rammed . | . . . . . . . Walls Destroyed . | . . . . . . . Machines Disabled . | . . . . . . . Actions | -11 -10 -9 -8 -7 -7 -7 --------- Run | Yrd Mat Mat Mat Fac Was Fac Total 2722 | 50 591 410 403 931 160 177 Wait 167 | . 14 55 9 74 15 . Move 2198 | 38 496 290 322 743 145 164 Hop . | . . . . . . . Pick Up 69 | 6 13 7 17 19 . 7 Fast Attach 23 | 6 3 . 8 5 . 1 Attach 24 | . . 3 10 6 . 5 Detach . | . . . . . . . Swap 12 | . 1 5 4 2 . . Drop 46 | . 12 9 5 20 . . Fire 179 | . 52 41 27 59 . . Melee . | . . . . . . . Ram 1 | . . . . 1 . . Kick . | . . . . . . . Crush 3 | . . . 1 2 . . Escape Stasis . | . . . . . . . Rewire . | . . . . . . . Trap . | . . . . . . . Miscellaneous . | . . . . . . . Route ------- -11/Scrapyard -10/Materials (discovered 2 exits: *Mat / *Min) -9/Materials -8/Materials -7/Factory (discovered 2 exits: *Low x2) -7/Waste -7/Factory History --------- Turn | Location | Event 2 | -11/Scrapyard | Met Revision 17 38 | -11/Scrapyard | Discovered new exit (range 15) 77 | -11/Scrapyard | Entered Materials 310 | -10/Materials | Build established: Mutant 834 | -10/Materials | Discovered new exit (range 16) 945 | -10/Materials | Identified exit to Mines 1031 | -10/Materials | Discovered new exit (range 15) 1054 | -10/Materials | Identified exit to Materials 1055 | -10/Materials | Entered another Materials area 1055 | -9/Materials | Evolved 2 slots: Utility x2 1425 | -9/Materials | Build established: Scavenger-Mutant 1645 | -9/Materials | Discovered new exit (range 16) 1714 | -9/Materials | Identified exit to Materials 1715 | -9/Materials | Entered another Materials area 1715 | -8/Materials | Evolved 2 slots: Utility x2 1966 | -8/Materials | Lost 3 parts (1n1u1w) 2224 | -8/Materials | Core integrity fell below 50% 2245 | -8/Materials | Build established: Hacker-Mutant 2253 | -8/Materials | Lost 13 parts (1p3n6u3w) 2331 | -8/Materials | Discovered new exit (range 4) 2337 | -8/Materials | Entered Factory 2337 | -7/Factory | Evolved 2 slots: Propulsion x1, Utility x1 3437 | -7/Factory | Identified exit to Lower Caves 3684 | -7/Factory | Garrison activated, responded to threat 3717 | -7/Factory | Core integrity fell below 50% 3735 | -7/Factory | Lost 7 parts (3n2u2w) 3769 | -7/Factory | Sucked down chute 3769 | -7/Factory | Entered Waste 3770 | -7/Waste | Lost 3 parts (1p1u1w) 3784 | -7/Waste | EMP discharged 3803 | -7/Waste | Spotted C-40 Crusher 3805 | -7/Waste | Spotted C-40 Crusher 3806 | -7/Waste | Spotted C-40 Crusher 3806 | -7/Waste | Spotted C-40 Crusher 3807 | -7/Waste | Spotted C-40 Crusher 3838 | -7/Waste | Spotted C-40 Crusher 3845 | -7/Waste | Crushed by Compactor (1 part destroyed, 1 dropped) 3846 | -7/Waste | Core integrity fell below 20% 3852 | -7/Waste | Discovered new exit (range 11) 3857 | -7/Waste | Entered Factory 4116 | -7/Factory | Destroyed by G-47 Trooper with Particle Gun Last Messages --------------- K-01 Serf collects debris. Critical hit (Burn: +37). ALERT: All DSF locations entering lockdown mode. K-01 Serf cleans the Repair Station. K-01 Serf collects debris. Critical hit (Burn: +37). K-01 Serf collects debris. System corrupted: Component data lost. Acquired Med. Treads. Triggered Ambush Trap. G-47 Trooper emerges from a hatch in the floor. Imp. Deuterium Engine destroyed. O-16 Technician: "IFF HANDSHAKE FAILED. SECURING TERMINAL." Imp. Sensor Array destroyed. ALERT: Hostiles spotted, dispatching reinforcements to Terminal F008. Matter Filter destroyed. Med. Treads destroyed. Map ----- +----------------------------------------------------+ | ########## # #???????????????????????? | | # ## + """ """ #???????????????????????? | | # ## # """ """ #???????????????????????? | | # ## # """ """ #???????????????????????? | | # ## # "" "" #???????????????????????? | | # ## # "" "" #???????????????????????? | | + ## # #???????????????????????? | | # / # ! #???????????????????????? | | # " " " ## ####+######???????????????????????? | | # " " " ## #??# #????????????????????????????? | | # " " " ## #??# #????????????????????????????? | | # " " " ## #### ###??????????????????????????? | | # " " " ## #??????????????????????????? | | # " " " ## #??????????????????????????? | | # " " " ## #??????????????????????????? | | # " " " ## """ #??????????????????????????? | | # " " " ## """"" #???????????? ?????????????? | | # ## """"" g #?????????? ??????????????? | | ####+##### ##########+####????????????? | | """ """"" #????????????? | | """"" "" F" t #????????????? | | """"" t"" "" +????????????? | | g g g #????????????? | | """ #????????????? | | ########## """ ! ! #????????????? | | #??????? """ @ #????????????? | | " #??????# #????????????? | | " #??????# """ ###### #????????????? | | " #??????+ """ #???????????????????? | | #??????? """ #???????????????????? | | #?????????? #???????????????????? | | #????????? ######+###???????????????????? | | #???????? g a ?????????????????????????????? | | ###???????? " g ?????????????????????????????? | | ????????????"" ?????????????????????????????? | | ????????????? ?????????????????????????????? | | ?????????????" ?????????????????????????????? | | ??????????????? ? ??????????????????????????????? | | ?????????????????????????????????????????????????? | | ?????????????????????????????????????????????????? | | ?????????????????????????????????????????????????? | | ?????????????????????????????????????????????????? | | ?????????????????????????????????????????????????? | | ?????????????????????????????????????????????????? | | ?????????????????????????????????????????????????? | | ?????????????????????????????????????????????????? | | ?????????????????????????????????????????????????? | | ?????????????????????????????????????????????????? | | ?????????????????????????????????????????????????? | | ?????????????????????????????????????????????????? | +----------------------------------------------------+ Best States ------------- Heat Dissipation 34 Energy Generation 16 Energy Capacity 290 Matter Stores 300 Matter Capacity 300 Sight Range 16 Robot Scan Range 15 Terrain Scan Density 10 Corruption Block 16 Armor Coverage 225 Evasion (%) 50 Core Analysis 9 Recoil Reduction 3 Matter Filtering 30 Offensive Hacking 10 Defensive Hacking 20 Item Schematics ----------------- None Robot Schematics ------------------ None Fabricated ------------ Nothing Alien Tech Used ----------------- None Achievements -------------- None Challenges ------------ None Game ------ Seed HeavyTrackerMicrothruster Manual? 0 Play Time 00:29:59 Cumulative 63.3 hours Start 2024.10.08 @ 12:09:47 End 2024.10.08 @ 15:36:14 Sessions 2 Manual Loads 0 Difficulty Rogue Special Mode None Game No. 72 Rogue 72 Adventurer 0 Explorer 0 Win Type - Total 0 Types 0/0/0/0/0/0/0/0/0 Lore% 44 Gallery% 40 Achievement% 33 Wizard Run 0 Options --------- Layout 1 ASCII 0 Keyboard 1 Movement Numpad Keybinds 0 Fullscreen 1 Font 24/Smallcaps Map View 50x35 Zoom Use 0% Tactical HUD 0 Map Filters NONE Filters NONE Steam 1 RUN: 70b3686a-ffd3-447f-8752-1e7a391217f0